bitfinex/quotes_ETHUSD_20241030
["timestamp","ask_amount","ask_price","bid_price","bid_amount"]
[1730319209419,0.01,2645.6,2645.2,3.84221253]
[1730319210049,0.01,2645.4,2645.2,0.06179253]
[1730319210216,3.78028,2645.3,2645.2,0.06179253]
[1730319210418,3.78028,2645.3,2644.7,3.78104]
[1730319210624,1.0597,2645.1,2644.7,3.78104]
[1730319211152,1.0597,2645.1,2644.8,3.78099]
[1730319212118,0.01,2644.9,2644.4,3.7815]
[1730319212549,0.01,2644.9,2644.5,3.78143]
[1730319212752,0.10452732,2644.9,2644.5,3.78143]
[1730319212994,1.0497,2645.1,2644.2,4.28571494]
[1730319213301,1.0497,2645.1,2644.7,3.78114]
[1730319213656,0.01,2645.4,2645.0,3.78071]
[1730319213859,0.01,2645.4,2645.1,3.7805]
[1730319214164,0.01,2645.4,2645.0,3.78071]
[1730319214473,0.01,2645.4,2645.0,3.78065]
[1730319214673,0.10450609,2645.4,2645.0,3.78065]
[1730319214887,0.01,2645.4,2645.0,3.78065]
[1730319215093,0.01,2645.2,2644.8,3.78098]
[1730319215708,0.01,2645.2,2644.9,0.06209735]
[1730319216112,3.78107,2644.8,2644.1,3.78191]
[1730319216281,0.10454174,2644.7,2644.3,3.7817]
[1730319217099,0.9953,2645.1,2644.3,3.7817]
[1730319217100,0.10453888,2644.9,2644.3,3.78171]
[1730319217320,3.88547888,2644.9,2644.4,3.78145]
[1730319217596,3.88547888,2644.9,2644.3,3.78171]
[1730319217597,3.78107,2644.8,2644.3,3.78171]
[1730319218375,3.78138,2644.6,2644.0,3.78202]
[1730319218580,3.79138,2644.6,2644.1,3.78198]
[1730319218866,0.01,2644.4,2643.9,6.78228]
[1730319219065,0.01,2644.4,2643.8,4.31080149]
[1730319219066,3.78181,2644.3,2643.7,3.78249]
[1730319219493,3.78194,2644.2,2643.7,3.78249]
[1730319219968,3.78181,2644.3,2643.8,3.78233]
[1730319220424,0.01,2644.2,2643.8,3.78233]
[1730319220623,1.0647,2644.4,2643.8,3.78233]
[1730319220624,4.84628,2644.4,2643.9,3.85790925]
[1730319220829,4.84628,2644.4,2644.0,3.78212]
[1730319220830,0.01,2644.3,2644.0,3.78212]
[1730319221025,0.01,2644.3,2643.8,3.78233]
[1730319221232,0.01,2644.3,2643.9,3.78226]
[1730319221401,0.01,2644.3,2643.8,3.78233]
[1730319221601,3.79174,2644.3,2643.8,3.78233]
[1730319221805,3.79174,2644.3,2643.8,7.56465]
[1730319222019,3.79174,2644.3,2643.8,3.78232]
[1730319222338,3.79174,2644.3,2643.8,7.56466]
[1730319222539,3.79174,2644.3,2643.8,3.78232]
[1730319222903,3.79174,2644.3,2643.8,7.56466]
[1730319223248,3.78209,2644.1,2643.2,9.05234494]
[1730319223412,0.01,2644.1,2643.6,3.78259]
[1730319223614,3.78216,2644.0,2643.6,3.78259]
[1730319224134,0.10455486,2644.1,2643.6,3.78259]
[1730319224440,3.88656486,2644.1,2643.6,3.78259]
[1730319225237,3.79201,2644.1,2643.6,3.78259]
[1730319225442,0.01,2644.1,2643.5,3.78275]
[1730319225644,0.01,2644.1,2643.7,3.78252]
[1730319225955,0.09455279,2644.3,2643.3,4.68836449]
[1730319226104,1.0747,2644.4,2643.3,4.68836449]
[1730319226105,1.0747,2644.4,2644.1,3.78198]
[1730319226305,0.11419178,2645.7,2644.0,0.07563253]
[1730319226306,0.01,2644.8,2644.0,0.07563253]
[1730319226810,0.01,2644.8,2644.5,3.7814]
[1730319227220,0.9898,2644.9,2644.5,3.78134]
[1730319227419,1.08432603,2644.9,2644.5,3.78134]
[1730319228317,4.86526603,2644.9,2644.4,3.78147]
[1730319228923,4.86526603,2644.9,2644.3,3.78159]
[1730319228924,0.01,2644.8,2644.3,3.78159]
[1730319229112,3.78116,2644.7,2644.3,3.78159]
[1730319230816,3.78045,2645.2,2644.3,3.78159]
[1730319231033,1.0014,2647.3,2644.4,1.08166131]
[1730319231242,0.8160627,2684.8,2647.6,0.96176921]
[1730319231243,10.01086945,2648.4,2647.6,0.96176921]
[1730319231456,8.21390473,2650.4,2644.7,3.39389089]
[1730319231457,8.21390473,2650.4,2649.5,0.01]
[1730319231679,1.51145381,2650.3,2649.3,0.01]
[1730319231853,3.7734,2650.2,2649.0,0.01]
[1730319232059,3.7736,2650.0,2649.4,0.05517986]
[1730319232241,4.3875214,2649.9,2648.8,0.01]
[1730319232435,3.77401,2649.7,2648.4,3.79573]
[1730319232657,0.65022953,2649.6,2648.9,0.05571839]
[1730319232825,4.42439953,2649.6,2648.6,0.0063]
[1730319233045,4.42439953,2649.6,2649.0,0.05549292]
[1730319233240,0.65022953,2649.6,2648.6,0.0063]
[1730319233446,3.7743,2649.5,2649.1,0.05538521]
[1730319233673,0.57526912,2649.4,2648.6,0.0063]
[1730319233858,0.0380119,2649.4,2649.2,0.0552775]
[1730319234065,0.0380119,2649.4,2648.6,0.0063]
[1730319234265,0.9871,2649.3,2648.6,0.0063]
[1730319234462,0.0380119,2649.2,2648.7,0.05581612]
[1730319238291,0.9871,2649.3,2648.8,3.78146]
[1730319238799,0.9871,2649.3,2648.9,0.05545654]
[1730319239002,0.9871,2649.3,2648.9,3.83058654]
[1730319239250,0.9871,2649.3,2648.9,0.05545654]
[1730319239801,3.8120219,2649.7,2648.9,3.83058654]
[1730319240156,0.0380119,2649.7,2648.9,3.83058654]
[1730319240559,3.8120219,2649.7,2648.9,3.83058654]
[1730319240758,0.0380119,2649.7,2648.9,3.83058654]
[1730319240961,0.0380119,2649.7,2649.0,3.77499]
[1730319241199,0.0380119,2649.7,2649.0,3.83033618]
[1730319241408,0.0380119,2649.7,2649.0,3.83034618]
[1730319242097,3.8121419,2649.7,2649.0,0.05534618]
[1730319242303,1.0815,2649.8,2649.1,0.08179281]
[1730319242463,0.0380119,2649.7,2649.1,0.0063]
[1730319242663,3.8120419,2649.7,2649.2,0.05513076]
[1730319243604,0.0380119,2649.7,2649.2,0.05513076]
[1730319244274,0.0380119,2649.7,2649.3,1.0764]
[1730319244466,3.77339,2650.2,2649.5,3.78049]
[1730319244661,0.1260627,2650.9,2650.8,3.78874]
[1730319244862,0.1260627,2650.9,2650.8,11.29141663]
[1730319245107,4.78119,2652.2,2651.5,0.0063]
[1730319245480,3.77074,2652.0,2651.6,0.05254826]
[1730319245665,1.0107,2652.2,2651.6,0.05254826]
[1730319245666,3.77116,2651.7,2651.6,0.05254826]
[1730319245972,3.77116,2651.7,2651.1,0.0063]
[1730319246290,3.7946612,2651.7,2651.6,0.05254826]
[1730319246602,3.77185,2651.3,2650.7,0.08173655]
[1730319247173,3.7715,2651.5,2650.7,0.08173655]
[1730319247592,3.77159,2651.4,2650.7,0.08173655]
[1730319248969,3.7948512,2651.6,2650.8,0.0163]
[1730319249301,3.77172,2651.4,2650.8,0.0063]
[1730319249498,3.77172,2651.4,2650.8,0.08173558]
[1730319250072,3.7948812,2651.6,2650.8,0.09173558]
[1730319250270,3.7948812,2651.6,2650.8,3.86416558]
[1730319251192,3.77146,2651.5,2651.0,0.0063]
[1730319251396,7.5663212,2651.6,2651.0,0.0063]
[1730319251716,3.77149,2651.5,2651.0,0.0063]
[1730319252410,3.7948812,2651.6,2651.0,0.0063]
[1730319252576,3.77022,2652.4,2651.0,0.0063]
[1730319252577,0.4504,2653.6,2651.5,1.5581]
[1730319252770,3.76995,2652.6,2652.2,0.0063]
[1730319252966,3.76994,2652.6,2652.0,0.0063]
[1730319253194,7.53992,2652.6,2652.0,0.0063]
[1730319253407,3.77004,2652.5,2652.0,0.0063]
[1730319254014,3.77063,2652.1,2651.8,0.0163]
[1730319254182,3.77063,2652.1,2651.3,3.77166]
[1730319254183,3.7696,2652.8,2651.3,0.01]
[1730319254383,3.77089,2651.9,2651.4,0.0063]
[1730319254587,3.77103,2651.8,2651.4,0.0063]
[1730319254896,7.54244,2651.7,2651.5,0.05248575]
[1730319255075,3.77117,2651.7,2651.5,0.05248575]
[1730319255490,3.77149,2651.5,2651.1,0.0163]
[1730319255811,3.77111,2651.8,2651.1,3.77818]
[1730319255971,3.77134,2651.6,2651.1,0.0063]
[1730319256167,3.77102,2651.8,2651.1,0.0063]
[1730319256372,3.77102,2651.8,2651.1,3.85362446]
[1730319256571,1.5258,2653.4,2651.5,5.01670152]
[1730319256798,1.5258,2653.4,2652.0,1.5336]
[1730319256799,1.5295,2653.4,2652.0,1.5336]
[1730319256999,3.76938,2653.0,2651.7,0.0063]
[1730319257211,3.77053,2652.2,2651.7,0.0063]
[1730319257376,1.5258,2652.5,2651.7,0.0063]
[1730319257578,3.77046,2652.2,2651.7,0.0063]
[1730319258792,3.77033,2652.3,2651.7,3.77744]
[1730319259007,3.77033,2652.3,2651.7,7.54851]
[1730319259216,7.54023,2652.5,2651.8,3.77093]
[1730319259413,3.77023,2652.4,2651.8,3.77093]
[1730319259773,3.77032,2652.3,2651.7,3.77737]
[1730319260125,5.26094,2652.9,2651.2,0.0163]
[1730319260126,3.7712,2651.7,2651.2,0.0163]
[1730319260284,3.77096,2651.9,2651.2,0.0163]
[1730319260627,3.77103,2651.8,2651.2,3.78807]
[1730319260784,3.77117,2651.7,2651.3,0.05099891]
[1730319260981,3.77009,2652.5,2651.3,6.47830152]
[1730319261205,3.77009,2652.5,2651.9,7.54158]
[1730319261615,3.76962,2652.8,2652.2,3.77043]
[1730319261836,1.4402,2652.9,2652.0,0.05024639]
[1730319262128,3.77044,2652.3,2652.0,0.05024639]
[1730319262443,3.77045,2652.2,2652.1,0.05013892]
[1730319262592,3.77045,2652.2,2651.6,3.78747]
[1730319262796,3.77045,2652.2,2652.1,0.05013892]
[1730319263014,3.77045,2652.2,2651.6,3.78747]
[1730319263201,3.77068,2652.1,2651.6,3.77756]
[1730319263408,3.77068,2652.1,2651.6,0.0063]
[1730319263839,6.76941,2653.0,2651.6,0.0063]
[1730319263840,1.5879,2654.9,2653.2,0.0063]
[1730319264141,1.5879,2654.9,2652.9,0.01]
[1730319264142,1.5879,2654.9,2653.5,3.7786]
[1730319264293,5.35452,2654.9,2653.5,3.85395183]
[1730319264690,5.35452,2654.9,2653.5,5.2998]
[1730319264896,3.76693,2654.7,2653.5,5.3061]
[1730319265091,3.7665,2655.0,2653.5,5.3061]
[1730319265332,3.7665,2655.0,2653.5,5.38145983]
[1730319265541,1.5424,2654.9,2653.5,5.3061]
[1730319265704,5.30902,2654.9,2653.5,5.3061]
[1730319265929,3.76676,2654.8,2653.5,5.3061]
[1730319266131,1.5424,2654.9,2653.5,5.3061]
[1730319266132,5.30908,2654.9,2653.5,5.3061]
[1730319266305,3.76701,2654.7,2653.5,1.5312]
[1730319266630,3.8994654,2654.3,2653.2,3.78527]
[1730319266993,0.1319954,2654.3,2653.3,3.76887]
[1730319267431,0.1319954,2654.3,2653.2,3.78527]
[1730319267734,0.1319954,2654.3,2653.4,3.76874]
[1730319269820,3.0,2654.2,2653.4,3.76874]
[1730319270555,0.1319954,2654.3,2653.9,3.76794]
[1730319271105,1.4915,2654.2,2653.5,0.0063]
[1730319271538,1.4915,2654.2,2653.5,3.7748]
[1730319271745,1.4915,2654.2,2653.6,3.76841]
[1730319271919,1.4915,2654.2,2653.7,3.76823]
[1730319272115,1.4915,2654.2,2653.8,3.76816]
[1730319272409,0.1319954,2654.3,2653.7,3.7683]
[1730319273150,0.1319954,2654.3,2653.8,3.7681]
[1730319273449,0.1319954,2654.3,2654.0,3.76786]
[1730319273917,0.1319954,2654.3,2654.2,3.76761]
[1730319274345,0.1319954,2654.3,2654.0,3.77779]
[1730319274709,0.1319954,2654.3,2654.2,3.76761]
[1730319274933,0.1319954,2654.3,2654.0,3.77779]
[1730319275147,0.1319954,2654.3,2654.1,3.7677]
[1730319275823,0.1319954,2654.3,2654.2,0.04770898]
[1730319276030,0.1319954,2654.3,2654.0,3.77779]
[1730319276229,0.1319954,2654.3,2653.5,3.0]
[1730319276230,0.1319954,2654.3,2654.2,0.04770898]
[1730319276430,0.1319954,2654.3,2653.6,0.01]
[1730319276775,0.1319954,2654.3,2654.2,0.04770898]
[1730319276966,0.1319954,2654.3,2653.8,3.76817]
[1730319277177,0.1319954,2654.3,2653.7,3.76824]
[1730319277345,0.1319954,2654.3,2653.9,0.04803091]
[1730319277545,3.8994654,2654.3,2653.8,0.04813824]
[1730319277759,3.8994654,2654.3,2654.0,0.04792359]
[1730319277760,0.1319954,2654.3,2654.0,0.04792359]
[1730319278074,0.1319954,2654.3,2654.1,0.04781629]
[1730319278273,0.1319954,2654.3,2653.5,5.21903]
[1730319278432,0.1319954,2654.3,2653.6,0.01]
[1730319278635,3.76825,2653.8,2653.6,0.04835291]
[1730319278833,3.76844,2653.7,2652.9,0.0163]
[1730319279070,0.55,2653.8,2653.7,0.04824371]
[1730319279234,3.76792,2654.0,2653.0,0.07537688]
[1730319279572,3.76792,2654.0,2653.7,0.04824371]
[1730319279573,3.76825,2653.8,2653.7,0.04824371]
[1730319279743,3.8994954,2654.3,2653.0,3.76931]
[1730319279744,0.1319954,2654.3,2653.6,1.5515]
[1730319280072,3.76761,2654.2,2653.7,0.04824371]
[1730319280271,3.76796,2654.0,2653.4,0.01]
[1730319280598,3.76796,2654.0,2653.8,0.04814783]
[1730319280783,3.76796,2654.0,2653.3,3.76888]
[1730319281064,3.76796,2654.0,2653.2,5.36084]
[1730319281274,3.76796,2654.0,2653.2,9.12978]
[1730319281471,3.76761,2654.2,2653.1,3.01]
[1730319281472,4.31761,2654.2,2653.3,0.04868458]
[1730319281647,3.76818,2653.8,2653.0,3.76923]
[1730319281844,0.55,2654.2,2653.4,0.04857721]
[1730319282155,1.4846,2653.7,2652.8,1.5069]
[1730319282357,0.55,2653.6,2653.5,0.04846764]
[1730319282541,3.76882,2653.4,2652.8,1.5169]
[1730319282745,3.76882,2653.4,2652.8,1.5069]
[1730319282970,3.76882,2653.4,2652.9,0.0491119]
[1730319283641,3.76863,2653.5,2652.9,0.0491119]
[1730319284058,4.31857,2653.6,2652.9,0.0491119]
[1730319284469,3.76861,2653.5,2652.9,0.0491119]
[1730319284675,4.31857,2653.6,2652.9,0.0491119]
[1730319285061,0.1319954,2654.3,2653.1,3.7854]
[1730319285062,3.76806,2653.9,2653.1,3.7854]
[1730319285260,3.76761,2654.2,2653.3,3.76886]
[1730319285477,3.76784,2654.1,2653.3,3.76886]
[1730319285684,3.7679,2654.0,2653.4,0.04858645]
[1730319286180,1.7295954,2654.3,2653.2,3.76892]
[1730319286389,3.76797,2654.0,2653.3,3.81757382]
[1730319286604,3.76797,2654.0,2653.3,0.04869382]
[1730319286804,3.76776,2654.1,2653.4,1.4877]
[1730319286949,3.76776,2654.1,2653.4,5.25635]
[1730319287150,3.76776,2654.1,2653.5,0.04846949]
[1730319287352,0.55,2654.2,2653.5,0.04846949]
[1730319287548,4.31762,2654.2,2653.5,3.81704949]
[1730319288482,3.76776,2654.1,2653.5,0.04846949]
[1730319288860,0.55,2654.2,2653.5,0.04846949]
[1730319289158,3.76784,2654.1,2653.5,0.04846949]
[1730319289700,0.55,2654.2,2653.5,0.04846949]
[1730319289869,4.31771,2654.2,2653.5,0.04846949]
[1730319290484,4.31771,2654.2,2653.5,3.81700949]
[1730319290661,3.8995254,2654.3,2653.5,3.81700949]
[1730319290662,0.1319954,2654.3,2653.7,3.76821]
[1730319290875,0.1319954,2654.3,2654.0,3.76789]
[1730319291061,0.1319954,2654.3,2654.0,3.7678]
[1730319291265,0.1319954,2654.3,2654.1,0.04782996]
[1730319291870,3.8994854,2654.3,2654.1,0.04782996]
[1730319292191,0.1319954,2654.3,2653.4,5.26634]
[1730319292367,3.8994654,2654.3,2654.2,0.04772265]
[1730319292693,3.76778,2654.1,2654.0,0.505]
[1730319292987,3.76778,2654.1,2654.0,0.55293726]
[1730319293694,4.31778,2654.1,2654.0,0.55293726]
[1730319293871,4.31778,2654.1,2654.0,0.505]
[1730319295501,7.31778,2654.1,2654.0,0.505]
[1730319297602,4.31775,2654.1,2654.0,0.505]
[1730319297886,6.62020152,2654.2,2654.0,0.55294613]
[1730319297887,3.76768,2654.2,2654.0,0.55294613]
[1730319298097,3.76775,2654.1,2654.0,0.55294613]
[1730319298489,8.02508344,2654.1,2654.0,0.55294613]
[1730319298905,11.57508344,2654.1,2654.0,0.505]
[1730319299077,11.57508344,2654.1,2654.0,0.55293985]
[1730319299274,11.57508344,2654.1,2654.0,0.505]
[1730319300777,0.55,2654.0,2652.7,1.8599]
[1730319300997,4.25733344,2653.2,2652.8,0.04924518]
[1730319301301,3.76933,2653.0,2652.7,1.482]
[1730319301471,3.76933,2653.0,2652.4,0.19941955]
[1730319301472,8.02643344,2653.2,2652.4,5.45147955]
[1730319301669,3.0,2653.4,2652.7,3.7696]
[1730319301890,8.02551344,2653.8,2653.1,3.76906]
[1730319302296,4.25733344,2653.8,2653.2,3.76895]
[1730319302674,4.25733344,2653.8,2653.1,3.76916]
[1730319302910,4.25733344,2653.8,2653.0,1.482]
[1730319303077,3.76847,2653.6,2653.0,1.482]
[1730319303482,4.25733344,2653.8,2653.0,1.482]
[1730319303694,3.76876,2653.4,2653.0,1.482]
[1730319304011,3.76876,2653.4,2652.7,1.6189]
[1730319304012,3.76885,2653.4,2652.7,1.6189]
[1730319304209,3.76898,2653.3,2652.7,1.6089]
[1730319304704,3.76897,2653.3,2652.7,1.6089]
[1730319304903,3.76885,2653.4,2652.7,1.6089]
[1730319305104,8.02561344,2653.8,2652.9,3.76943]
[1730319305311,3.76842,2653.7,2652.9,3.77937]
[1730319305675,4.25733344,2653.8,2653.0,3.84468902]
[1730319305910,4.25733344,2653.8,2653.2,3.769]
[1730319306405,4.25733344,2653.8,2653.3,0.04871526]
[1730319306607,4.25733344,2653.8,2653.1,3.76908]
[1730319306608,8.02552344,2653.8,2653.1,3.76908]
[1730319306768,3.76834,2653.7,2653.2,0.04882263]
[1730319306985,3.76834,2653.7,2653.0,4.1553089]
[1730319307183,3.76834,2653.7,2653.1,0.04892891]
[1730319307488,8.02552344,2653.8,2653.1,3.81808891]
[1730319307489,8.02551344,2653.8,2653.1,3.81808891]
[1730319307710,8.09558524,2653.8,2653.1,0.04892891]
[1730319307909,8.09558524,2653.8,2653.1,0.12430448]
[1730319308151,4.32740524,2653.8,2653.1,0.12430448]
[1730319308344,0.0700718,2653.8,2653.3,3.76889]
[1730319308623,0.0700718,2653.8,2653.4,0.58067726]
[1730319308828,0.0700718,2653.8,2653.4,0.04860826]
[1730319309135,0.0700718,2653.8,2653.2,5.3208]
[1730319309291,3.76832,2653.7,2653.5,0.04850017]
[1730319309485,4.32740524,2653.8,2653.2,1.5518]
[1730319309686,3.76832,2653.7,2653.6,0.04683857]
[1730319309893,3.76877,2653.4,2652.9,1.6366]
[1730319310191,3.76898,2653.3,2652.9,1.6266]
[1730319310390,3.76892,2653.3,2652.9,1.6266]
[1730319310585,3.76913,2653.2,2652.9,1.6266]
[1730319310790,3.76913,2653.2,2652.6,1.6155]
[1730319310993,3.76913,2653.2,2652.6,1.6255]
[1730319311324,4.25733344,2652.9,2652.4,0.19941955]
[1730319311509,3.76982,2652.7,2652.4,0.19941955]
[1730319311695,3.7696,2652.8,2652.4,0.19941955]
[1730319311898,0.0700718,2652.9,2652.4,0.19941955]
[1730319312300,0.0700718,2652.9,2652.4,0.83184174]
[1730319312504,0.0700718,2652.9,2652.4,3.96945955]
[1730319312703,0.0700718,2652.9,2652.5,3.76999]
[1730319312903,0.0700718,2652.9,2652.6,3.76986]
[1730319314432,0.0700718,2652.9,2652.4,3.77004]
[1730319314841,0.0700718,2652.9,2652.5,3.7699]
[1730319315138,4.32740524,2652.9,2652.3,1.5968]
[1730319315338,8.09686524,2652.9,2652.3,1.6005]
[1730319315644,0.0700718,2652.9,2652.3,1.6005]
[1730319316115,0.0700718,2652.9,2652.3,5.92163388]
[1730319316312,0.0700718,2652.9,2652.7,0.0063]
[1730319316511,0.0700718,2652.9,2652.8,3.7796]
[1730319316756,0.0700718,2652.9,2652.8,5.44577961]
[1730319317055,0.0700718,2652.9,2652.8,5.3704]
[1730319317263,0.0700718,2652.9,2652.8,6.3604145]
[1730319317415,0.0700718,2652.9,2652.8,6.285035]
[1730319318835,0.0700718,2652.9,2652.8,5.3704]
[1730319320118,0.0700718,2652.9,2652.8,5.44577931]
[1730319320451,0.0700718,2652.9,2652.8,8.44577931]
[1730319320670,0.0700718,2652.9,2652.8,8.3704]
[1730319320954,0.0700718,2652.9,2652.8,8.41811614]
[1730319321114,4.25733344,2654.5,2653.8,3.76814]
[1730319321315,3.76733,2654.4,2653.8,3.76814]
[1730319321548,3.76732,2654.4,2653.9,0.04653512]
[1730319321970,3.76732,2654.4,2653.7,3.76827]
[1730319321971,3.7675,2654.3,2653.7,3.76827]
[1730319322174,4.25733344,2654.5,2654.0,0.0464278]
[1730319322343,3.76745,2654.4,2653.7,3.76821]
[1730319322550,3.76745,2654.4,2654.1,0.04631393]
[1730319322867,8.02462344,2654.5,2654.2,0.04620663]
[1730319323045,8.02462344,2654.5,2653.8,3.76818]
[1730319323046,8.02454344,2654.5,2653.8,3.76818]
[1730319323243,4.25733344,2654.5,2654.3,0.04609934]
[1730319323477,5.26287,2654.7,2654.0,3.76781]
[1730319323675,4.25733344,2654.8,2654.4,0.04599205]
[1730319323973,4.25733344,2654.8,2654.1,3.76763]
[1730319323974,4.25733344,2654.8,2654.2,3.76751]
[1730319324132,1.5646,2655.0,2654.5,0.04588477]
[1730319324328,8.02373344,2655.1,2654.4,3.76732]
[1730319324535,1.5892,2655.3,2654.6,0.04577751]
[1730319324773,4.88596731,2655.4,2654.8,3.76675]
[1730319324774,4.39459387,2655.4,2654.8,3.76675]
[1730319324934,0.62863387,2655.4,2654.8,3.76675]
[1730319325282,0.62863387,2655.4,2655.0,3.76635]
[1730319325772,0.62863387,2655.4,2655.1,0.04524129]
[1730319326473,0.62863387,2655.4,2655.2,3.76619]
[1730319326778,0.1268262,2655.5,2655.2,0.04513407]
[1730319326978,0.1268262,2655.5,2655.4,0.01]
[1730319327270,0.1268262,2655.5,2655.4,3.82082965]
[1730319328035,0.1268262,2655.5,2655.4,0.05491965]
[1730319328455,0.1268262,2655.5,2655.4,3.82082965]
[1730319328662,0.1268262,2655.5,2655.4,0.05491965]
[1730319329034,0.1268262,2655.5,2655.4,3.82082965]
[1730319329233,0.1268262,2655.5,2655.4,0.05491965]
[1730319332481,0.1268262,2655.5,2655.4,3.82082965]
[1730319332639,0.1268262,2655.5,2655.4,0.04491965]
[1730319332838,0.1268262,2655.5,2655.0,3.77647]
[1730319333076,0.1268262,2655.5,2655.1,0.04524129]
[1730319333660,0.1268262,2655.5,2655.4,0.01]
[1730319333861,0.1268262,2655.5,2655.4,5.48101881]
[1730319334186,0.1268262,2655.5,2655.4,5.4504832]
[1730319337472,0.1268262,2655.5,2655.4,5.52578477]
[1730319338183,0.1268262,2655.5,2655.4,8.4504832]
[1730319338392,0.1268262,2655.5,2655.4,9.67213652]
[1730319339070,3.76395,2656.8,2655.4,8.04863652]
[1730319339271,3.76335,2657.2,2656.2,3.77107]
[1730319339598,3.76373,2657.0,2656.3,3.83984383]
[1730319339897,3.76335,2657.2,2656.3,0.11908639]
[1730319340064,3.76407,2656.7,2656.3,0.04380256]
[1730319340468,3.76393,2656.8,2656.3,0.04380256]
[1730319340673,6.76369,2657.0,2656.3,0.04380256]
[1730319340864,3.76392,2656.9,2656.3,0.04380256]
[1730319341065,6.76369,2657.0,2656.3,0.04380256]
[1730319341264,3.76429,2656.6,2656.3,0.04380256]
[1730319341609,3.76429,2656.6,2656.1,0.01]
[1730319341773,7.52795,2656.8,2656.4,0.04369544]
[1730319342094,3.76392,2656.8,2656.2,3.7647]
[1730319342500,3.76392,2656.8,2656.3,0.04380256]
[1730319342802,5.27839,2656.9,2656.2,3.76477]
[1730319343002,3.76392,2656.8,2656.4,0.04369544]
[1730319343218,3.76449,2656.4,2656.3,0.04380256]
[1730319343500,3.76487,2656.2,2655.7,1.5663]
[1730319343660,3.76487,2656.2,2655.7,1.5563]
[1730319343863,3.76487,2656.2,2655.8,0.04431687]
[1730319344103,3.76486,2656.2,2655.7,1.5563]
[1730319344265,3.76499,2656.1,2655.9,0.04420971]
[1730319344480,3.76486,2656.2,2655.5,0.01]
[1730319344481,3.76506,2656.0,2655.5,0.01]
[1730319344687,7.53021,2656.0,2655.5,0.01]
[1730319345011,3.76506,2656.0,2655.5,0.01]
[1730319345380,3.76493,2656.1,2655.5,3.77565]
[1730319345579,3.76512,2656.0,2655.5,3.77565]
[1730319345810,3.76512,2656.0,2655.5,3.76565]
[1730319346013,5.39048,2656.2,2655.3,5.36083]
[1730319346014,3.76457,2656.4,2655.8,3.76523]
[1730319346215,3.76457,2656.4,2655.8,0.0063]
[1730319346375,3.76457,2656.4,2655.9,3.76518]
[1730319346783,3.76457,2656.4,2655.9,3.76512]
[1730319346979,4.99222951,2656.1,2655.3,1.5948]
[1730319347180,3.76535,2655.8,2655.3,0.01]
[1730319347426,3.76556,2655.7,2655.3,0.01]
[1730319347625,3.76535,2655.8,2655.3,0.01]
[1730319347991,3.76512,2656.0,2655.3,0.01]
[1730319347992,3.76512,2656.0,2655.5,3.76572]
[1730319348716,3.76522,2655.9,2655.4,3.77217]
[1730319348919,3.76522,2655.9,2655.4,3.76587]
[1730319349087,3.76604,2655.4,2655.0,1.4809]
[1730319349284,1.5907,2655.4,2654.6,0.0163]
[1730319349498,3.7665,2655.0,2654.6,0.0163]
[1730319349719,3.7663,2655.2,2654.6,0.01]
[1730319350031,3.7663,2655.2,2653.9,3.76802]
[1730319350032,3.76725,2654.5,2654.0,3.76782]
[1730319350181,7.53455,2654.5,2654.0,0.3842]
[1730319350380,3.76725,2654.5,2654.0,0.0063]
[1730319350822,3.76725,2654.5,2654.1,0.04475481]
[1730319351019,4.25585157,2654.3,2654.1,0.04475481]
[1730319351218,4.25585157,2654.3,2653.3,5.42499]
[1730319351519,4.25585157,2654.0,2653.6,3.76845]
[1730319351727,4.25585157,2654.0,2653.4,3.76861]
[1730319351886,4.25585157,2654.0,2653.5,3.7686]
[1730319352116,3.76741,2654.4,2653.7,0.01]
[1730319352340,3.76741,2654.4,2653.8,3.76817]
[1730319352525,8.02298157,2654.6,2653.8,3.76817]
[1730319352526,4.25585157,2654.6,2653.9,0.0063]
[1730319352730,1.5048,2654.7,2654.3,3.76744]
[1730319352942,8.02248157,2654.9,2654.3,3.76744]
[1730319353451,4.25585157,2654.9,2654.3,3.76738]
[1730319353654,4.25585157,2654.9,2654.4,0.07534403]
[1730319353853,4.25585157,2654.9,2654.4,3.84265403]
[1730319354039,3.76679,2654.8,2654.3,3.76738]
[1730319354442,4.25585157,2654.9,2654.3,3.76738]
[1730319354618,3.76627,2655.2,2654.5,3.76718]
[1730319354619,8.02212157,2655.2,2654.5,3.76718]
[1730319354925,8.02212157,2655.2,2654.6,3.76697]
[1730319355933,11.78841157,2655.2,2654.6,3.76697]
[1730319356344,8.02212157,2655.2,2654.6,3.76697]
[1730319356732,8.02212157,2655.2,2654.7,3.76683]
[1730319357255,8.02212157,2655.2,2654.6,3.76695]
[1730319357256,3.76638,2655.1,2654.6,3.76695]
[1730319358056,4.25585157,2655.2,2654.5,3.78339]
[1730319358057,4.25585157,2655.2,2654.7,0.0063]
[1730319358272,8.02207157,2655.2,2654.7,7.53992]
[1730319358453,4.25585157,2655.2,2654.7,3.7731]
[1730319358616,8.02213157,2655.2,2654.7,3.7731]
[1730319358816,8.02213157,2655.2,2654.5,3.77711]
[1730319359035,3.76677,2654.8,2654.2,0.0063]
[1730319359256,3.76712,2654.6,2654.1,1.6498]
[1730319359727,3.76712,2654.6,2654.1,5.41753]
[1730319360127,4.25585157,2654.9,2654.4,0.0063]
[1730319360476,4.80585157,2655.2,2654.2,0.0063]
[1730319360763,3.76755,2654.3,2653.8,0.0063]
[1730319360947,8.02340157,2654.3,2653.7,5.26832]
[1730319361127,3.76775,2654.2,2653.7,3.77452]
[1730319361330,5.87515157,2654.3,2653.7,3.77452]
[1730319361524,3.76739,2654.4,2653.9,3.76803]
[1730319361754,8.02291157,2654.6,2653.7,3.77452]
[1730319361755,3.0,2654.5,2653.7,3.77452]
[1730319361954,6.76728,2654.5,2654.0,0.04493511]
[1730319362165,6.76728,2654.5,2653.9,3.76795]
[1730319362457,3.7674,2654.4,2654.0,0.04493511]
[1730319362665,6.76728,2654.5,2654.0,0.04493511]
[1730319362846,3.76746,2654.4,2653.8,7.53636]